bitfinex-derivatives/quotes_ETHF0:USTF0_20250627
["timestamp","ask_amount","ask_price","bid_price","bid_amount"]
[1751052581829,0.83063,2406.7,2406.6,35.5688]
[1751052582617,0.83063,2406.7,2406.6,32.361]
[1751052584130,0.83063,2406.7,2406.6,33.19167]
[1751052584317,0.83063,2406.7,2406.6,32.361]
[1751052585327,0.83063,2406.7,2406.6,33.19167]
[1751052585628,0.8306,2406.8,2406.6,32.361]
[1751052585931,0.8306,2406.8,2406.7,0.83063]
[1751052586120,0.8306,2406.8,2406.6,33.19164]
[1751052586320,0.8306,2406.8,2406.6,32.361]
[1751052586724,0.8306,2406.8,2406.7,0.83063]
[1751052587122,4.70071139,2406.9,2406.7,0.83063]
[1751052587329,4.70071139,2406.9,2406.8,25.623]
[1751052587829,6.17071139,2406.9,2406.8,25.623]
[1751052590329,9.37851139,2406.9,2406.8,25.623]
[1751052590721,7.90851139,2406.9,2406.8,25.623]
[1751052591531,7.07792139,2406.9,2406.8,26.4536]
[1751052591734,7.90849139,2406.9,2406.8,26.4536]
[1751052591930,3.2078,2406.9,2406.8,26.4536]
[1751052592531,4.03837,2406.9,2406.8,26.4536]
[1751052592731,0.83057,2406.9,2406.8,26.4536]
[1751052592937,0.83057,2406.9,2406.8,25.623]
[1751052593424,4.70069139,2406.9,2406.8,25.623]
[1751052594532,7.90849139,2406.9,2406.8,25.623]
[1751052595127,3.2078,2406.9,2406.8,26.4536]
[1751052596426,4.03837,2406.9,2406.8,26.4536]
[1751052596626,3.2078,2406.9,2406.8,26.4536]
[1751052597633,4.03837,2406.9,2406.8,26.4536]
[1751052598834,4.03837,2406.9,2406.8,25.623]
[1751052600125,4.03837,2406.9,2406.8,26.4536]
[1751052600325,4.03837,2406.9,2406.8,25.623]
[1751052601735,3.2078,2406.9,2406.8,26.4536]
[1751052601935,2.24065,2407.0,2406.9,0.83057]
[1751052602138,3.2078,2407.2,2407.1,0.8305]
[1751052602323,3.2078,2407.2,2407.1,26.4345]
[1751052602324,4.2342395,2407.2,2407.1,26.4345]
[1751052602527,5.0647095,2407.2,2407.1,25.604]
[1751052602726,8.93483089,2407.2,2407.1,25.604]
[1751052602937,10.27383089,2407.2,2407.1,25.604]
[1751052603131,9.24739139,2407.2,2407.1,25.604]
[1751052604229,0.83063,2406.7,2406.6,3.26621516]
[1751052604536,4.70075139,2406.7,2406.6,25.602]
[1751052605235,4.70075139,2406.7,2406.6,25.601]
[1751052606634,0.83063,2406.7,2406.6,25.601]
[1751052607342,4.70075139,2406.7,2406.6,25.601]
[1751052610137,0.83063,2406.7,2406.6,25.601]
[1751052610347,1.4527,2406.8,2406.6,25.601]
[1751052610549,0.83063,2406.7,2406.6,25.601]
[1751052613047,0.83067,2406.6,2406.5,3.2078]
[1751052613248,3.87012139,2406.7,2406.5,25.592]
[1751052613543,1.4527,2406.8,2406.5,25.592]
[1751052613745,7.27821,2406.8,2406.6,4.70079139]
[1751052613941,2.28331,2406.8,2406.6,6.14629139]
[1751052614139,0.83072,2406.5,2406.3,4.09696516]
[1751052614339,0.83072,2406.5,2406.4,32.282]
[1751052614549,5.32282139,2406.8,2406.4,33.11274]
[1751052614550,0.83069,2406.6,2406.4,33.11274]
[1751052614750,0.8307,2406.5,2406.4,32.282]
[1751052615145,0.8307,2406.5,2406.4,33.11274]
[1751052615345,0.83069,2406.6,2406.4,33.11274]
[1751052615645,5.32282139,2406.8,2406.4,33.11274]
[1751052615847,0.8307,2406.5,2406.4,33.11274]
[1751052616546,0.83069,2406.6,2406.4,33.11274]
[1751052617247,0.8307,2406.5,2406.4,33.11274]
[1751052617546,0.83069,2406.6,2406.4,33.11274]
[1751052617741,5.32282139,2406.8,2406.4,33.11274]
[1751052617946,0.8307,2406.5,2406.4,33.11274]
[1751052618150,0.8307,2406.5,2406.4,32.282]
[1751052619648,4.70081139,2406.6,2406.4,33.11274]
[1751052619853,0.8307,2406.5,2406.4,33.11274]
[1751052620545,4.70080139,2406.6,2406.4,33.11271]
[1751052620747,0.8307,2406.5,2406.4,33.11271]
[1751052621252,0.8307,2406.5,2406.4,32.282]
[1751052621445,0.8307,2406.5,2406.4,6.69]
[1751052621647,0.8307,2406.5,2406.4,32.276]
[1751052621856,0.8307,2406.5,2406.4,33.10674]
[1751052622150,4.70080139,2406.6,2406.5,0.8307]
[1751052622352,4.70080139,2406.6,2406.4,33.10672]
[1751052622546,4.70080139,2406.6,2406.5,0.8307]
[1751052622742,4.70080139,2406.6,2406.4,32.276]
[1751052622743,0.83065,2406.7,2406.6,0.83067]
[1751052622943,0.83065,2406.7,2406.6,26.41467]
[1751052624350,0.83065,2406.7,2406.6,25.584]
[1751052626044,2.20595,2406.7,2406.6,25.584]
[1751052631252,0.8307,2406.5,2406.4,6.69]
[1751052631452,4.70082139,2406.5,2406.4,32.265]
[1751052631659,4.70082139,2406.5,2406.4,25.575]
[1751052632760,0.83075,2406.4,2406.2,0.83078]
[1751052633058,1.53865,2406.4,2406.3,25.574]
[1751052633753,0.83081,2406.2,2406.1,53.96401516]
[1751052633961,0.83081,2406.2,2406.1,39.56685516]
[1751052634155,0.6653,2406.3,2406.2,0.83081]
[1751052634457,0.6653,2406.3,2406.1,38.73601516]
[1751052634458,0.6653,2406.3,2406.1,39.56683516]
[1751052634761,0.6653,2406.3,2406.2,0.83081]
[1751052635361,1.49607,2406.3,2406.2,0.83081]
[1751052635660,0.83081,2406.2,2406.1,39.56683516]
[1751052635963,1.49609,2406.3,2406.1,36.30062]
[1751052636265,1.49609,2406.3,2406.2,0.83081]
[1751052636649,0.6653,2406.3,2406.2,0.83081]
[1751052636858,4.602,2406.6,2406.2,0.83081]
[1751052636859,0.83071,2406.5,2406.4,0.83074]
[1751052637055,0.83071,2406.5,2406.4,25.569]
[1751052637454,0.83071,2406.5,2406.4,26.39974]
[1751052637956,4.03849,2406.6,2406.5,0.8307]
[1751052638155,0.8307,2406.5,2406.4,26.39972]
[1751052638354,3.2078,2406.6,2406.5,0.8307]
[1751052638656,3.2078,2406.9,2406.8,0.83058]
[1751052638862,3.2078,2406.9,2406.8,30.26870139]
[1751052639350,3.2078,2406.9,2406.8,31.61520139]
[1751052639757,4.03837,2406.9,2406.8,31.61520139]
[1751052639967,4.03837,2406.9,2406.8,26.9145]
[1751052640358,3.2078,2406.9,2406.8,27.7451]
[1751052641162,3.2078,2406.9,2406.8,31.61522139]
[1751052641361,2.07651,2406.8,2405.9,1.19940159]
[1751052641555,0.83095,2405.8,2405.5,6.5611952]
[1751052641755,0.83096,2405.8,2405.6,66.363]
[1751052641956,0.83095,2405.8,2405.7,32.253]
[1751052642157,0.83095,2405.8,2405.6,40.8]
[1751052642158,0.83098,2405.7,2405.6,40.8]
[1751052642359,0.83098,2405.7,2405.6,73.035]
[1751052642559,0.83098,2405.7,2405.6,47.472]
[1751052642761,0.83098,2405.7,2405.6,40.8]
[1751052643061,0.83098,2405.7,2405.6,73.035]
[1751052645161,0.83112,2405.3,2405.2,12.4031652]
[1751052645463,0.83112,2405.3,2405.2,37.9681652]
[1751052645665,0.83112,2405.3,2405.2,12.4031652]
[1751052645863,1.55222,2405.3,2405.2,32.238]
[1751052646070,1.55222,2405.3,2405.2,6.673]
[1751052646259,3.02842,2405.3,2405.2,6.673]
[1751052646560,3.02842,2405.3,2405.2,32.238]
[1751052647763,0.7211,2405.3,2405.2,32.238]
[1751052648267,1.55222,2405.3,2405.2,32.238]
[1751052649259,0.7211,2405.3,2405.2,32.238]
[1751052649471,0.8311,2405.4,2405.2,32.238]
[1751052649662,0.8311,2405.4,2405.2,34.44155]
[1751052652566,0.7116,2405.6,2405.2,33.6104]
[1751052652757,4.6108,2405.8,2405.2,33.6104]
[1751052652758,3.2078,2405.8,2405.7,0.83098]
[1751052652963,3.2078,2405.8,2405.7,32.246]
[1751052653166,4.03875,2405.8,2405.7,32.246]
[1751052653666,0.83095,2405.8,2405.7,32.246]
[1751052653870,0.83095,2405.8,2405.7,33.07698]
[1751052654068,0.83093,2405.9,2405.7,33.07698]
[1751052654268,0.83095,2405.8,2405.7,33.07698]
[1751052654469,0.83095,2405.8,2405.7,32.246]
[1751052654867,0.83094,2405.9,2405.7,33.07697]
[1751052655073,4.70103139,2406.0,2405.7,33.07697]
[1751052655269,0.83095,2405.8,2405.7,32.246]
[1751052655469,0.83093,2405.9,2405.7,32.246]
[1751052655873,0.83093,2405.9,2405.7,33.07697]
[1751052656073,3.87012139,2406.0,2405.7,33.07697]
[1751052656074,4.70102139,2406.0,2405.7,33.07697]
[1751052656265,3.87012139,2406.0,2405.7,33.07697]
[1751052656467,3.2078,2406.1,2405.7,36.11612139]
[1751052656677,3.2078,2406.1,2405.9,0.83088]
[1751052656975,3.2078,2406.1,2406.0,26.40088]
[1751052657171,3.2078,2406.1,2406.0,33.07588]
[1751052657367,4.03864,2406.1,2406.0,32.245]
[1751052658077,3.2078,2406.1,2406.0,32.245]
[1751052658375,3.2078,2406.1,2406.0,33.07588]
[1751052658565,4.03864,2406.1,2406.0,32.245]
[1751052658974,7.90876139,2406.1,2406.0,32.245]
[1751052660372,9.35506139,2406.1,2406.0,32.245]
[1751052660681,8.52422139,2406.1,2406.0,25.568]
[1751052660871,9.35506139,2406.1,2406.0,25.568]
[1751052667179,7.90876139,2406.1,2406.0,25.568]
[1751052671882,9.29646139,2406.1,2406.0,25.568]
[1751052673583,8.46562139,2406.1,2405.6,4.03879]
[1751052673883,4.70103139,2405.9,2405.8,6.67]
[1751052675186,0.83091,2405.9,2405.8,7.50095]
[1751052675377,0.83089,2406.0,2405.8,6.67]
[1751052675578,0.83089,2406.0,2405.8,7.50092]
[1751052675783,0.83089,2406.0,2405.8,8.86382]
[1751052676288,0.83091,2405.9,2405.8,8.0329]
[1751052676475,0.83091,2405.9,2405.8,6.67]
[1751052676882,4.70103139,2405.9,2405.8,6.67]
[1751052677285,4.70103139,2405.9,2405.8,32.232]
[1751052678082,6.46583451,2405.9,2405.8,32.232]
[1751052680587,6.46583451,2405.9,2405.8,25.562]
[1751052681886,5.63492451,2405.9,2405.5,6.67]
[1751052682086,0.83098,2405.7,2405.6,25.56]
[1751052682480,0.83101,2405.6,2405.5,6.67]
[1751052682683,0.83101,2405.6,2405.5,32.23]
[1751052683889,0.83108,2405.4,2405.3,3.2078]
[1751052684085,0.83108,2405.4,2405.3,35.4378]
[1751052684476,3.87012139,2405.5,2405.3,9.8778]
[1751052684683,0.83108,2405.4,2405.3,9.8778]
[1751052684881,1.51338,2405.4,2405.3,35.4368]
[1751052685084,2.20008,2405.4,2405.3,35.4368]
[1751052686192,2.20008,2405.4,2405.3,9.8778]
[1751052686394,2.20008,2405.4,2405.3,35.4378]
[1751052689287,2.20008,2405.4,2405.3,9.8778]
[1751052689484,5.40788,2405.4,2405.3,32.229]
[1751052689684,5.40788,2405.4,2405.3,6.67]
[1751052689884,0.8312,2405.1,2404.9,0.83125]
[1751052690084,4.70132139,2405.1,2405.0,32.228]
[1751052695193,3.87012139,2405.1,2405.0,33.05922]
[1751052695893,4.70126139,2405.3,2405.1,0.83118]
[1751052696101,10.4028,2405.4,2405.2,26.38915]
[1751052696295,10.4028,2405.4,2405.3,25.557]
[1751052698594,5.4079,2405.4,2405.3,25.557]
[1751052700203,4.5768,2405.4,2405.3,26.38812]
[1751052700508,0.6867,2405.4,2405.3,26.38812]
[1751052701095,0.6867,2405.4,2405.3,33.05912]
[1751052701305,0.7056,2405.6,2405.5,0.83105]
[1751052701498,0.831,2405.7,2405.6,0.83101]
[1751052702092,0.83101,2405.6,2405.5,26.38604]
[1751052702297,0.83101,2405.6,2405.5,25.555]
[1751052705805,4.70112139,2405.7,2405.5,26.38605]
[1751052706199,3.87012139,2405.7,2405.5,26.38605]
[1751052706400,4.70113139,2405.7,2405.5,26.38605]
[1751052706606,4.74437,2405.8,2405.6,0.83101]
[1751052706806,4.74437,2405.8,2405.7,25.552]
[1751052707007,5.83032237,2405.8,2405.7,25.552]
[1751052709102,7.30712237,2405.8,2405.7,25.552]
[1751052709298,6.47615237,2405.8,2405.0,6.48668697]
[1751052709505,4.70131139,2405.1,2405.0,3.2078]
[1751052709703,4.70131139,2405.1,2405.0,35.4188]
[1751052709902,4.70131139,2405.1,2405.0,9.8698]
[1751052710207,4.70131139,2405.1,2405.0,35.4178]
[1751052710406,4.70131139,2405.1,2405.0,9.8698]
[1751052710596,4.70131139,2405.1,2405.0,35.4178]
[1751052711203,0.83129,2404.8,2404.7,3.27888697]
[1751052711404,4.70141139,2404.8,2404.7,25.547]
[1751052711605,0.83136,2404.6,2404.5,3.27888697]
[1751052711811,4.70148139,2404.6,2404.5,66.347]
[1751052712307,4.70148139,2404.6,2404.5,40.8]
[1751052712514,4.70148139,2404.6,2404.5,66.347]
[1751052712719,3.87012139,2404.6,2404.5,66.347]
[1751052713110,4.70148139,2404.6,2404.5,66.347]
[1751052713518,4.70148139,2404.6,2404.5,40.8]
[1751052713919,4.70148139,2404.6,2404.5,66.349]
[1751052714124,4.70148139,2404.6,2404.5,66.348]
[1751052714422,4.70148139,2404.6,2404.5,25.548]
[1751052715219,0.83139,2404.5,2404.4,50.6698]
[1751052715425,0.83139,2404.5,2404.4,28.7558]
[1751052716226,3.87012139,2404.6,2404.4,3.2078]
[1751052716522,4.70148139,2404.6,2404.5,25.549]
[1751052717027,0.83139,2404.5,2404.4,3.2078]
[1751052717323,0.83139,2404.5,2404.4,28.7568]
[1751052717822,4.03919,2404.5,2404.4,25.549]
[1751052718120,5.43129,2404.5,2404.4,25.549]
[1751052718520,0.83143,2404.4,2404.2,0.83148]
[1751052718721,3.87012139,2404.3,2404.2,0.83148]
[1751052718922,3.87012139,2404.3,2404.2,26.38048]
[1751052719123,3.87012139,2404.3,2404.2,26.3805]
[1751052719422,3.87012139,2404.3,2404.2,25.549]
[1751052719624,3.2078,2404.5,2404.3,0.83144]
[1751052719823,3.2078,2404.5,2404.4,26.38043]
[1751052720010,4.03919,2404.5,2404.4,32.212]
[1751052722922,5.41749,2404.5,2404.4,32.212]
[1751052724325,3.2078,2404.5,2404.4,33.04343]
[1751052724925,0.83137,2404.6,2404.4,33.04343]
[1751052725221,2.30275,2404.7,2404.5,0.83139]
[1751052725422,2.30275,2404.7,2404.6,26.38036]
[1751052725725,0.83127,2404.9,2404.8,0.83129]
[1751052725925,0.83127,2404.9,2404.8,25.549]
[1751052727515,0.83126,2404.9,2404.8,25.548]
[1751052727721,2.29896,2404.9,2404.8,25.548]
[1751052731538,6.4677,2404.9,2404.1,6.664]
[1751052731832,3.2078,2404.8,2404.5,7.07792139]
[1751052732027,3.2078,2404.8,2404.7,0.83133]
[1751052732427,4.0391,2404.8,2404.6,75.22896]
[1751052732631,4.9949,2404.9,2404.8,0.83129]
[1751052733027,4.03897,2405.2,2404.9,0.83125]
[1751052733334,4.77317,2405.2,2405.0,25.545]
[1751052733522,4.9949,2405.6,2405.0,29.41512139]
[1751052733829,1.08563692,2405.5,2405.4,3.2078]
[1751052734032,1.4188,2405.8,2405.4,28.7708]
[1751052734033,2.24977,2405.8,2405.4,28.7708]
[1751052734234,5.78652803,2405.7,2405.4,28.7708]
[1751052734433,1.08542664,2405.6,2405.4,28.7708]
[1751052734736,1.08542664,2405.6,2405.4,29.60187]
[1751052734939,1.91645664,2405.6,2405.4,28.7708]
[1751052735126,0.83103,2405.6,2405.4,25.563]
[1751052735939,4.70112139,2405.7,2405.4,25.563]
[1751052736125,4.70112139,2405.7,2405.4,26.39408]
[1751052736430,4.70117139,2405.5,2405.4,25.563]
[1751052736729,3.87012139,2405.7,2405.4,25.563]
[1751052736935,1.4188,2405.8,2405.5,0.83105]
[1751052737125,1.4188,2405.8,2405.5,1.428]
[1751052737326,0.83101,2405.6,2405.4,28.7708]
[1751052737523,4.70112139,2405.7,2405.4,28.7708]
[1751052738035,0.83101,2405.6,2405.4,28.7708]
[1751052738237,4.70112139,2405.7,2405.4,29.60188]
[1751052738838,3.87012139,2405.7,2405.4,28.7708]
[1751052739044,3.87012139,2405.7,2405.4,30.1543]
[1751052739229,1.4188,2405.8,2405.6,0.83101]
[1751052739530,1.4188,2405.8,2405.7,25.55]
[1751052739731,2.24975,2405.8,2405.7,25.55]
[1751052741928,9.03358,2406.0,2405.7,26.38098]
[1751052742134,4.03869,2406.0,2405.7,26.38097]
[1751052742334,0.83091,2405.9,2405.7,27.71187]
[1751052742834,0.83095,2405.8,2405.7,26.8809]
[1751052743635,4.70105139,2405.9,2405.7,30.0887]
[1751052743835,4.70105139,2405.9,2405.7,30.91967]
[1751052744037,0.83095,2405.8,2405.7,30.0887]
[1751052744339,0.83095,2405.8,2405.7,28.7468]
[1751052744540,1.53445,2405.8,2405.7,28.7468]
[1751052750244,0.7035,2405.8,2405.4,3.2078]
[1751052750444,4.70117139,2405.5,2405.4,3.2078]
[1751052750644,4.70117139,2405.5,2405.4,28.7438]
[1751052754552,0.83108,2405.4,2405.3,6.664]
[1751052754751,0.83108,2405.4,2405.3,32.2]
[1751052757047,0.83115,2405.2,2405.1,9.8718]
[1751052757252,4.70127139,2405.2,2405.1,35.4078]
[1751052757657,5.38647139,2405.2,2405.1,35.4078]
[1751052759650,5.38647139,2405.2,2405.1,32.2]
[1751052760650,6.81277139,2405.2,2405.1,32.2]
[1751052761060,5.38647139,2405.2,2405.1,32.2]
[1751052765554,1.51635,2405.2,2405.1,32.2]
[1751052765760,0.83114,2405.3,2405.1,35.4078]
[1751052765959,0.83114,2405.3,2405.2,1.4781]
[1751052766163,3.87012139,2405.6,2405.2,1.4781]
[1751052766453,0.83112,2405.3,2405.2,1.4781]
[1751052766652,0.8311,2405.4,2405.2,27.0141]
[1751052766862,0.8311,2405.4,2405.3,0.83112]
[1751052767160,0.8311,2405.4,2405.3,2.30532]
[1751052767460,0.83107,2405.5,2405.3,2.30532]
[1751052767659,0.83107,2405.5,2405.4,27.0102]
[1751052768557,3.9253,2405.7,2405.4,27.0102]
[1751052768760,1.08886406,2405.6,2405.5,2.30525]
[1751052769062,0.83101,2405.6,2405.5,1.4742]
[1751052770759,4.9949,2406.0,2405.5,6.5835]
[1751052770959,0.83088,2406.0,2405.9,3.2078]
[1751052771156,0.83088,2406.0,2405.9,28.7428]
[1751052771759,1.9191509,2406.0,2405.9,28.7428]
[1751052771966,0.83088,2406.0,2405.9,28.7428]
[1751052772362,20.41239607,2406.9,2405.9,37.61292139]
[1751052772559,0.83075,2406.4,2406.2,7.90872139]
[1751052772757,0.83075,2406.4,2406.3,33.6246]
[1751052773063,0.83072,2406.5,2406.3,34.45536]
[1751052773466,0.83072,2406.5,2406.3,33.6246]
[1751052773765,3.2078,2406.9,2406.4,3.87012139]
[1751052773961,3.2078,2406.9,2406.6,3.87012139]
[1751052774157,3.2078,2406.9,2406.7,34.45421]
[1751052774358,0.83055,2407.0,2406.8,1.4396]
[1751052774559,0.83053,2407.0,2406.9,25.533]
[1751052775770,0.83051,2407.1,2406.9,25.533]
[1751052776666,0.83051,2407.1,2406.9,26.9511]
[1751052776972,0.83045,2407.3,2407.0,11.35063139]
[1751052777269,0.83045,2407.3,2407.1,26.9461]
[1751052777468,1.3827,2407.4,2407.1,26.9461]
[1751052777664,0.83043,2407.3,2407.1,67.7461]
[1751052778163,1.3827,2407.4,2407.1,68.57658]
[1751052778164,2.21312,2407.4,2407.1,68.57658]
[1751052778965,1.3827,2407.4,2407.1,70.9539]
[1751052779168,1.3827,2407.4,2407.2,0.83045]
[1751052779464,1.3827,2407.4,2407.3,25.524]
[1751052779670,2.2131,2407.4,2407.3,25.524]
[1751052780265,1.50819,2407.4,2407.3,25.524]
[1751052780571,0.83039,2407.4,2407.3,25.524]
[1751052782069,0.83046,2407.2,2407.1,44.0078]
[1751052782366,9.6623,2407.9,2407.1,44.0078]
[1751052782367,8.2027,2407.9,2407.1,73.39892139]
[1751052782569,8.2027,2407.9,2407.5,3.2078]
[1751052782570,0.6915,2407.8,2407.5,3.2078]
[1751052782764,1.55963,2407.9,2407.6,30.22141139]
[1751052782965,1.55963,2407.9,2407.6,31.59621139]
[1751052783261,0.7294,2407.9,2407.6,26.8958]
[1751052783466,0.83029,2407.7,2407.6,26.8958]
[1751052783866,0.83032,2407.6,2407.5,3.2078]
[1751052784068,3.2078,2408.2,2407.5,28.7288]
[1751052784366,0.34103492,2408.6,2407.5,28.7288]
[1751052784367,0.83022,2407.9,2407.8,3.2078]
[1751052784572,7.47721,2408.0,2407.8,30.1044]
[1751052784868,0.83021,2408.0,2407.8,30.1044]
[1751052785068,7.47721,2408.0,2407.8,30.1044]
[1751052785274,7.47717,2408.1,2407.8,34.80477139]
[1751052785472,6.647,2408.1,2407.8,30.1044]
[1751052785768,0.83022,2407.9,2407.8,30.1044]
[1751052786271,6.647,2408.1,2407.8,30.1044]
[1751052786466,0.83019,2408.0,2407.8,30.93463]
[1751052786667,0.83022,2407.9,2407.8,30.93463]
[1751052786866,0.83022,2407.9,2407.8,30.1044]
[1751052787065,6.647,2408.2,2407.9,0.83019]
[1751052787364,0.83018,2408.1,2408.0,25.517]
[1751052788165,0.83022,2407.9,2407.8,3.2078]
[1751052788469,0.83033,2407.6,2407.5,3.2078]
[1751052788666,4.70045139,2407.6,2407.5,28.7218]
[1751052789670,4.70045139,2407.6,2407.2,1.4034]
[1751052789867,0.83038,2407.5,2407.3,25.514]
[1751052790269,3.87012139,2407.6,2407.3,25.514]
[1751052790270,0.8304,2407.4,2407.3,25.514]
[1751052793976,0.83043,2407.3,2407.2,3.2078]
[1751052794177,0.83043,2407.3,2407.2,28.7198]
[1751052794879,4.70055139,2407.3,2407.2,28.7198]
[1751052795275,0.83043,2407.3,2407.2,28.7198]
[1751052795485,1.58363,2407.3,2407.2,28.7198]
[1751052799377,1.58363,2407.3,2407.2,29.55026]
[1751052799378,0.7532,2407.3,2407.2,29.55026]
[1751052800187,1.58363,2407.3,2407.2,28.7198]
[1751052800385,1.58363,2407.3,2407.2,29.55026]
[1751052800782,0.7532,2407.3,2407.2,29.55026]
[1751052800979,0.83037,2407.5,2407.4,0.83039]
[1751052801183,0.83037,2407.5,2407.4,26.34139]
[1751052801488,0.83037,2407.5,2407.4,25.511]
[1751052804595,4.70049139,2407.5,2407.4,25.511]
[1751052804794,0.83043,2407.3,2407.2,3.2078]
[1751052805090,0.83043,2407.3,2407.2,28.7178]
[1751052805495,2.20683,2407.3,2407.2,28.7178]
[1751052805796,1.3764,2407.3,2407.2,28.7178]
[1751052806094,0.83043,2407.3,2407.2,28.7178]
[1751052806788,0.83043,2407.3,2407.2,3.2078]
[1751052806988,2.26363,2407.3,2407.2,28.7168]
[1751052808597,6.13375139,2407.3,2407.2,28.7168]
[1751052808797,0.83053,2407.0,2406.9,3.2078]
[1751052808991,0.83053,2407.0,2406.9,28.7168]
[1751052809192,0.83052,2407.1,2406.9,28.7168]
[1751052809493,0.7236,2407.0,2406.9,29.54737]
[1751052810193,1.55413,2407.0,2406.9,3.2078]
[1751052810394,1.55413,2407.0,2406.9,28.7158]
[1751052810599,0.83057,2406.9,2406.8,40.8]
[1751052810895,0.83052,2407.1,2406.8,67.1386]
[1751052811098,0.83054,2407.0,2406.8,67.1386]
[1751052811296,0.83053,2407.0,2406.8,66.308]
[1751052811499,1.4437,2407.1,2406.8,67.1386]
[1751052811799,2.27421,2407.1,2406.9,0.83056]
[1751052812000,1.4437,2407.1,2407.0,25.509]
[1751052812189,2.2742,2407.1,2407.0,25.509]
[1751052814609,5.31382139,2407.1,2406.6,3.2078]
[1751052814901,3.87012139,2406.9,2406.7,25.509]
[1751052815097,10.51512139,2406.9,2406.7,25.509]
[1751052815297,0.8306,2406.8,2406.7,25.509]
[1751052815604,0.83064,2406.7,2406.6,44.0078]
[1751052815904,0.6976,2406.7,2406.6,69.5158]
[1751052816100,0.6976,2406.7,2406.6,70.34647]
[1751052816895,0.6976,2406.7,2406.6,44.83847]
[1751052817102,0.83056,2407.0,2406.6,73.38592139]
[1751052817301,0.83056,2407.0,2406.7,0.83061]
[1751052817302,0.6976,2407.0,2406.7,0.83061]
[1751052817496,0.83057,2406.9,2406.8,25.508]
[1751052817706,1.52815,2407.0,2406.8,25.508]
[1751052818205,1.52815,2407.0,2406.8,26.3386]
[1751052818406,0.83057,2406.9,2406.8,25.508]
[1751052818606,1.52816,2407.0,2406.8,25.508]
[1751052818906,0.83057,2406.9,2406.7,0.83061]
[1751052819104,1.52815,2407.0,2406.8,26.3386]
[1751052821323,1.55062,2407.1,2407.0,0.83053]
[1751052821608,1.55062,2407.1,2407.0,25.508]
[1751052824611,0.7201,2407.1,2407.0,30.20865139]
[1751052826708,9.8528,2407.6,2407.3,0.83042]
[1751052826914,1.58726,2407.5,2407.4,25.505]
[1751052828499,2.67373915,2407.5,2407.4,25.505]
[1751052829910,1.58726,2407.5,2407.4,25.505]
[1751052830413,2.67383656,2407.5,2407.4,25.505]
[1751052832608,1.58726,2407.5,2407.4,25.505]
[1751052833313,1.58726,2407.5,2407.4,26.3354]
[1751052833706,1.58726,2407.5,2407.4,25.505]
[1751052835710,0.83043,2407.3,2407.2,3.2078]
[1751052835912,7.46943,2407.3,2407.2,28.7068]
[1751052838416,8.89543,2407.3,2407.2,28.7068]
[1751052838717,8.89543,2407.3,2407.2,3.2078]
[1751052838913,18.34895,2407.3,2406.6,6.48668697]
[1751052839121,0.83062,2406.8,2406.7,25.498]
[1751052841223,4.70074139,2406.8,2406.7,25.498]
[1751052841426,6.17544139,2406.8,2406.7,25.498]
[1751052842626,2.30532,2406.8,2406.7,25.498]
[1751052842916,0.83062,2406.8,2406.7,25.498]
[1751052843121,4.9949,2407.2,2406.7,30.498]
[1751052843318,4.9949,2407.2,2407.1,7.90842139]
[1751052843518,0.83042,2407.4,2407.1,33.40542139]
[1751052843710,0.83043,2407.3,2407.2,1.3371]
[1751052843916,0.83043,2407.3,2407.2,5.20722139]
[1751052845724,0.83046,2407.2,2407.1,3.2078]
[1751052845922,4.70058139,2407.2,2407.1,3.2078]
[1751052847426,0.8306,2406.8,2406.7,3.2078]
[1751052847620,0.83041,2407.4,2406.7,30.77835]
[1751052847825,0.8304,2407.4,2407.3,3.87012139]
[1751052848020,0.8304,2407.4,2407.3,29.36512139]
[1751052848221,0.8304,2407.4,2407.3,25.495]
[1751052849021,3.2078,2407.6,2407.3,3.87012139]
[1751052849222,2.27124,2407.9,2407.6,0.83031]
[1751052849422,2.27124,2407.9,2407.6,2.29651]
[1751052849622,2.27124,2407.9,2407.6,43.09651]
[1751052850030,0.83026,2407.8,2407.6,42.2662]
[1751052850222,0.83026,2407.8,2407.7,25.558]
[1751052850623,1.08533992,2407.8,2407.7,26.38828]
[1751052852031,1.08533992,2407.8,2407.7,25.558]
[1751052852533,1.08533992,2407.8,2407.7,26.38829]
[1751052853036,1.08533992,2407.8,2407.7,27.79429]
[1751052853636,0.83019,2408.0,2407.8,0.83024]
[1751052853838,1.08468096,2407.9,2407.8,5.44404]
[1751052854735,3.2078,2408.3,2407.8,17.02994139]
[1751052854931,10.62394139,2408.3,2407.9,25.539]
[1751052855131,0.83019,2408.0,2407.9,25.539]
[1751052855840,0.83022,2407.9,2407.8,3.2078]
[1751052856034,1.56852,2407.9,2407.8,3.2078]
[1751052856235,0.7383,2407.9,2407.4,3.2078]
[1751052856442,0.83036,2407.5,2407.4,3.2078]
[1751052856834,3.2078,2408.0,2407.4,29.60718]
[1751052857032,0.83031,2407.7,2407.5,1.4506]
[1751052857239,0.83033,2407.6,2407.5,1.4506]
[1751052858241,3.2078,2408.0,2407.4,36.19294139]
[1751052858432,4.641,2408.0,2407.5,1.3562]
[1751052858637,0.83032,2407.7,2407.5,1.3562]
[1751052858840,0.83028,2407.8,2407.5,2.18656]
[1751052859250,0.8303,2407.7,2407.5,1.3562]
[1751052859448,0.8303,2407.7,2407.4,37.02331139]
[1751052859636,0.8303,2407.7,2407.4,38.37951139]